bitfinex/quotes_ETHUSD_20250708
["timestamp","ask_amount","ask_price","bid_price","bid_amount"]
[1751991952753,5.976,2574.4,2574.3,0.001]
[1751991952922,6.01499108,2574.4,2574.3,0.001]
[1751991953920,0.03899108,2574.4,2574.3,0.001]
[1751991956549,3.92339132,2574.4,2574.3,0.001]
[1751991956940,0.7681,2574.7,2574.3,0.001]
[1751991957138,13.92287883,2574.8,2574.3,4.67352642]
[1751991957457,19.85588775,2574.8,2574.3,5.53323384]
[1751991957963,1e-08,2574.8,2574.3,1.64870742]
[1751991958158,1e-08,2574.8,2574.4,3.92317326]
[1751991958962,1e-08,2574.8,2574.5,3.88423146]
[1751991959262,1e-08,2574.8,2574.5,4.82981567]
[1751991959453,1e-08,2574.8,2574.6,0.8293]
[1751991959626,1e-08,2574.8,2574.7,3.88394764]
[1751991959958,1e-08,2574.8,2574.7,0.1936]
[1751991960335,1e-08,2574.8,2574.7,4.07754764]
[1751991960538,1e-08,2574.8,2574.7,5.09003191]
[1751991961451,1e-08,2574.8,2574.7,5.86003191]
[1751991962967,1e-08,2574.8,2574.7,12.62347932]
[1751991963134,1e-08,2574.8,2574.7,12.58463985]
[1751991964352,1e-08,2574.8,2574.7,11.79019244]
[1751991964950,1e-08,2574.8,2574.7,18.55363985]
[1751991965151,1e-08,2574.8,2574.7,28.55363985]
[1751991966279,1e-08,2574.8,2574.7,31.40810539]
[1751991966652,1e-08,2574.8,2574.7,32.5700461]
[1751991967185,1e-08,2574.8,2574.7,29.10363985]
[1751991967687,1e-08,2574.8,2574.7,32.5700461]
[1751991968183,1e-08,2575.2,2575.1,4.43334433]
[1751991968392,0.00254009,2576.3,2575.1,4.43334433]
[1751991968393,0.00254009,2576.3,2575.5,10.55]
[1751991968555,0.00254009,2576.3,2576.0,21.60403498]
[1751991968863,0.00254009,2576.3,2576.2,13.8816862]
[1751991969066,0.00254009,2576.3,2576.2,27.59293361]
[1751991969289,1e-08,2576.3,2576.2,27.94933361]
[1751991969453,1e-08,2576.3,2576.2,31.57564716]
[1751991970286,0.0701842,2576.9,2576.8,3.88078236]
[1751991970475,0.0701842,2576.9,2576.5,3.88115169]
[1751991970476,0.0701842,2576.9,2576.5,0.8229]
[1751991970680,0.0701842,2576.9,2576.8,10.64422977]
[1751991970885,0.0701842,2576.9,2576.8,21.46712977]
[1751991971069,0.0701842,2576.9,2576.8,31.86602225]
[1751991971264,0.0701842,2576.9,2576.8,35.63038909]
[1751991971265,1e-08,2576.9,2576.8,35.63038909]
[1751991971470,0.0701842,2577.8,2577.7,14.70062739]
[1751991971667,0.0701842,2577.8,2577.7,20.71662739]
[1751991971904,0.0701842,2577.8,2577.7,14.70062739]
[1751991972100,0.0701842,2577.8,2577.7,6.17069013]
[1751991972302,0.0701842,2577.8,2577.7,12.18769013]
[1751991972505,0.0701842,2577.8,2577.7,8.30926274]
[1751991972816,0.0701842,2577.8,2577.7,2.29126274]
[1751991972970,0.0701842,2577.8,2577.2,9.329]
[1751991972971,3.8790643,2578.0,2577.6,0.03879577]
[1751991973176,10.52781425,2578.8,2577.8,10.0]
[1751991973384,3.87882549,2578.1,2578.0,10.0]
[1751991973612,3.87837418,2578.4,2577.6,10.0]
[1751991973805,3.87837418,2578.4,2577.2,9.329]
[1751991973806,0.38783742,2578.3,2577.2,9.329]
[1751991974102,3.87965416,2577.6,2577.3,16.017]
[1751991974309,3.8794395,2577.7,2577.4,6.019]
[1751991974473,3.87882549,2578.1,2577.2,9.329]
[1751991974681,3.87882549,2578.1,2576.8,4.70124381]
[1751991974682,3.88001622,2577.4,2577.3,6.018]
[1751991975204,3.8795779,2577.6,2576.8,0.8205]
[1751991975402,3.88000911,2577.4,2577.0,10.0]
[1751991975709,3.87942739,2577.7,2576.2,0.0056144]
[1751991975877,0.7962,2577.0,2576.2,3.8872939]
[1751991976074,3.88089537,2576.8,2576.3,9.90351483]
[1751991976284,3.88089537,2576.8,2576.3,6.022]
[1751991976709,3.88080233,2576.8,2576.3,6.022]
[1751991976896,4.67670715,2577.0,2576.2,0.0056144]
[1751991977210,3.88101357,2576.7,2576.2,6.0256144]
[1751991977428,3.8808932,2576.8,2576.2,6.0256144]
[1751991977589,3.881002,2576.7,2576.2,6.0256144]
[1751991978322,3.88109282,2576.6,2576.2,6.0256144]
[1751991979021,3.88109939,2576.6,2576.2,0.0056144]
[1751991979218,3.88102954,2576.7,2576.2,9.91328051]
[1751991979392,3.88102954,2576.7,2576.4,0.1936]
[1751991979590,0.1936,2576.8,2576.4,0.1936]
[1751991979798,3.88123423,2576.5,2576.4,0.1936]
[1751991979996,0.1936,2576.8,2576.4,0.1936]
[1751991980208,3.88111658,2576.6,2576.4,0.1936]
[1751991980928,3.88123423,2576.5,2576.4,0.1936]
[1751991981150,0.1936,2576.8,2576.4,0.1936]
[1751991981432,3.88104038,2576.7,2576.4,0.1936]
[1751991981634,3.8810145,2576.7,2576.4,0.1936]
[1751991982905,3.88108838,2576.6,2576.4,0.1936]
[1751991983105,3.88123423,2576.5,2576.4,0.1936]
[1751991983557,3.88123423,2576.5,2576.2,0.0056144]
[1751991983558,3.88153553,2576.3,2576.2,0.0056144]
[1751991984436,4.07513553,2576.3,2576.2,0.0056144]
[1751991985324,3.88153553,2576.3,2576.2,0.0056144]
[1751991986362,0.1936,2576.4,2576.2,0.0056144]
[1751991986534,4.67939188,2576.7,2576.2,0.0056144]
[1751991986535,0.7984,2576.7,2576.2,0.0056144]
[1751991986851,4.67943652,2576.7,2576.3,0.1936]
[1751991987544,4.07441853,2576.8,2576.3,4.07504551]
[1751991987752,3.88094015,2576.7,2576.3,0.1936]
[1751991987934,3.88116572,2576.6,2576.3,0.1936]
[1751991988142,3.88099752,2576.7,2576.3,0.1936]
[1751991990869,10.10839001,2576.8,2576.3,0.1936]
[1751991991038,10.10845471,2576.8,2576.3,4.07511375]
[1751991991667,3.88063176,2576.9,2576.3,4.75929148]
[1751991991965,0.1936,2577.0,2576.6,0.1936]
[1751991992164,4.07408601,2577.0,2576.6,0.1936]
[1751991992331,0.1936,2577.0,2576.6,4.0746303]
[1751991992532,4.26761383,2577.6,2576.6,4.0746303]
[1751991992533,3.4566568,2578.5,2576.8,0.7589]
[1751991992734,3.4566568,2578.5,2576.7,10.52781425]
[1751991992735,1.0095,2579.0,2578.1,0.1936]
[1751991992942,1.0095,2579.0,2578.4,0.1936]
[1751991992943,3.87811677,2578.6,2578.4,0.1936]
[1751991993284,0.8159,2579.0,2577.6,3.87944516]
[1751991993285,0.8159,2578.4,2577.6,3.87944516]
[1751991993577,1.0095,2578.4,2578.0,0.1936]
[1751991993782,3.87853026,2578.3,2578.0,0.1936]
[1751991993961,4.88796192,2578.4,2578.0,0.1936]
[1751991994138,0.1936,2578.4,2578.0,4.07256392]
[1751991994757,0.1936,2578.4,2578.0,4.07256267]
[1751991994975,12.83225212,2579.5,2577.6,0.46383452]
[1751991994976,0.819,2579.4,2579.0,3.87747188]
[1751991995599,0.819,2579.4,2578.7,6.8702]
[1751991995902,0.819,2579.4,2579.0,3.87747188]
[1751991996194,0.757,2579.7,2579.0,3.87747188]
[1751991996378,3.8762083,2579.9,2579.0,3.87747188]
[1751991996581,0.757,2579.9,2579.0,3.87747188]
[1751991996786,0.757,2580.0,2579.0,3.87747188]
[1751991996961,3.87575936,2580.2,2579.0,25.22248613]
[1751991997291,1e-08,2579.1,2579.0,31.89648613]
[1751991997488,1e-08,2579.1,2579.0,35.50314253]
[1751991997711,0.1074885,2580.3,2580.0,3.87586357]
[1751991997860,0.1074885,2580.3,2580.1,6.131]
[1751991998063,0.1074885,2580.3,2580.2,3.87566855]
[1751991998260,0.1074885,2580.3,2580.2,14.69772523]
[1751991998505,0.1074885,2580.3,2580.2,33.8382363]
[1751991998858,0.1074885,2580.3,2580.2,34.3882363]
[1751991999061,0.1131029,2581.7,2581.1,3.87421413]
[1751991999266,0.1131029,2581.7,2581.2,6.189]
[1751991999568,0.1131029,2581.7,2581.3,0.03874016]
[1751991999869,0.1131029,2581.7,2581.3,3.87392493]
[1751992000081,0.1131029,2581.7,2581.2,6.187]
[1751992000282,3.87380533,2581.5,2580.9,6.189]
[1751992000467,0.1131029,2581.7,2581.2,10.7833]
[1751992000793,0.1131029,2581.7,2581.6,3.87356678]
[1751992001111,0.1131029,2581.7,2581.6,20.88500244]
[1751992001264,0.1131029,2581.7,2581.6,21.39626678]
[1751992001871,0.1131029,2581.7,2581.6,14.64626678]
[1751992002207,0.1131029,2583.1,2582.0,0.8181]
[1751992002515,0.1131029,2583.1,2582.2,10.0]
[1751992002658,0.1131029,2583.1,2582.3,0.03872516]
[1751992002991,0.1131029,2583.1,2582.4,6.213]
[1751992002992,3.87201996,2582.7,2582.4,6.213]
[1751992003157,0.1131029,2583.1,2582.6,0.8314]
[1751992003360,0.1131029,2583.1,2582.8,3.87167482]
[1751992003561,0.1131029,2583.1,2583.0,0.8314]
[1751992003763,0.1131029,2583.1,2583.0,23.24177396]
[1751992003962,0.1131029,2583.1,2583.0,23.20305929]
[1751992004400,0.1131029,2583.1,2583.0,21.50486728]
[1751992004579,0.1131029,2583.1,2583.0,21.50386728]
[1751992004773,0.1131029,2583.1,2583.0,18.66175779]
[1751992004961,0.1131029,2583.1,2583.0,1.0242]
[1751992005288,0.1131029,2583.1,2583.0,1.06291467]
[1751992005667,0.1131029,2583.1,2583.0,4.93438195]
[1751992005869,0.1131029,2583.1,2583.0,14.93438195]
[1751992006196,0.1131029,2583.1,2583.0,14.70286728]
[1751992006371,0.1131029,2583.1,2583.0,18.11691463]
[1751992007062,0.1131029,2583.1,2583.0,24.37191463]
[1751992007267,0.1131029,2583.1,2583.0,14.70286728]
[1751992007583,0.1131029,2583.1,2582.5,0.7663]
[1751992007784,0.1131029,2583.1,2582.6,6.29472066]
[1751992007992,0.1131029,2583.1,2583.0,3.87146728]
[1751992008186,0.1131029,2583.1,2583.0,3.91018195]
[1751992008593,0.1131029,2583.1,2582.9,10.12661692]
[1751992008594,0.1131029,2583.1,2582.9,3.87158423]
[1751992008801,0.1131029,2583.1,2582.5,0.7663]
[1751992008802,0.1131029,2583.1,2583.0,0.03871467]
[1751992008982,0.1131029,2583.1,2582.6,0.03872066]
[1751992009180,0.1131029,2583.1,2582.7,10.13189789]
[1751992009181,0.1151029,2583.1,2582.7,10.13189789]
[1751992009413,0.1151029,2583.1,2583.0,4.63776728]
[1751992009624,0.1151029,2583.1,2583.0,20.90876728]
[1751992010408,0.1151029,2583.1,2583.0,14.63776728]
[1751992010609,0.1151029,2583.1,2582.8,10.15065756]
[1751992010811,0.1151029,2583.1,2582.7,6.1190915]
[1751992010812,0.1151029,2583.1,2582.7,0.7663]
[1751992011110,0.1151029,2583.1,2582.8,10.19343987]
[1751992011310,0.1151029,2583.1,2583.0,3.87146728]
[1751992011486,0.1151029,2583.1,2583.0,3.91018195]
[1751992011692,0.1151029,2583.1,2583.0,0.03871467]
[1751992011996,0.1151029,2583.1,2582.9,1.09597399]
[1751992012198,0.1151029,2583.1,2583.0,6.285]
[1751992012713,0.1151029,2583.1,2583.0,20.15446728]
[1751992013578,0.1151029,2583.1,2583.0,20.96186728]
[1751992013579,1e-08,2583.1,2583.0,20.96186728]
[1751992015781,1e-08,2583.1,2583.0,14.67886728]
[1751992015980,1e-08,2583.1,2582.8,3.87171001]
[1751992016298,1e-08,2583.1,2583.0,0.1928]
[1751992016711,3.87131741,2583.1,2583.0,0.1928]
[1751992016894,1e-08,2583.1,2583.0,0.1928]
[1751992017088,3.87131741,2583.1,2583.0,0.1928]
[1751992017399,1e-08,2583.1,2583.0,0.1928]
[1751992017977,1e-08,2583.1,2583.0,4.06426728]
[1751992018204,1e-08,2583.1,2583.0,11.76751471]
[1751992019315,1e-08,2583.1,2583.0,5.48951471]
[1751992019522,1e-08,2583.1,2583.0,11.80522938]
[1751992019730,1e-08,2583.1,2583.0,11.76651471]
[1751992020402,1e-08,2583.1,2583.0,10.34026728]
[1751992020728,1e-08,2583.1,2582.1,7.95019201]
[1751992020729,1e-08,2583.1,2582.3,0.7982]
[1751992020938,3.87146728,2583.0,2581.9,0.7982]
[1751992021143,3.87146728,2583.0,2582.0,0.34969766]
[1751992021144,0.7963,2582.9,2582.0,0.34969766]
[1751992021434,0.46678111,2582.8,2582.3,3.87240724]
[1751992021640,4.66802698,2582.9,2582.2,10.15763861]
[1751992021843,3.87206546,2582.7,2582.3,6.283]
[1751992022026,3.87206546,2582.7,2581.9,0.7982]
[1751992022027,3.87230247,2582.5,2582.0,3.87291124]
[1751992022208,3.87244606,2582.4,2582.1,0.35105003]
[1751992022411,3.87266671,2582.2,2581.7,3.87335065]
[1751992022743,3.87266671,2582.2,2581.6,10.64992934]
[1751992022744,3.87311669,2581.9,2581.8,0.35111129]
[1751992022922,3.87296839,2582.0,2581.7,0.35111129]
[1751992023097,3.87281669,2582.1,2580.9,0.8243]
[1751992023296,3.87349369,2581.7,2581.0,4.22581909]
[1751992023543,3.87327045,2581.8,2581.1,4.73069252]
[1751992023699,3.87296669,2582.0,2581.2,0.3514627]
[1751992023895,3.87378655,2581.5,2581.2,0.3514627]
[1751992024100,4.69966122,2581.9,2581.3,0.03874016]
[1751992024409,4.69966122,2581.9,2581.2,6.282]
[1751992024410,3.87342788,2581.7,2581.2,0.03874167]
[1751992024613,0.8264,2581.9,2581.2,0.03874167]
[1751992024614,4.69958418,2581.9,2581.2,4.26565229]
[1751992024808,4.69958418,2581.9,2581.4,3.87383092]
[1751992025442,0.8264,2581.9,2581.4,3.91248636]
[1751992025598,0.8264,2581.9,2581.6,3.87348314]
[1751992026024,0.8264,2582.3,2581.7,0.03873416]
[1751992026221,0.8264,2582.3,2581.8,3.87319675]
[1751992026430,0.8264,2582.3,2581.8,3.91192941]
[1751992026646,0.8264,2582.3,2582.0,3.87296367]
[1751992026830,0.8264,2582.3,2581.9,3.87305762]
[1751992027001,0.8264,2582.3,2581.8,4.93087181]
[1751992027205,0.8264,2582.3,2581.9,4.22775838]
[1751992027404,4.62953927,2582.6,2582.1,3.87274114]
[1751992027646,0.7574,2582.6,2582.1,3.87274114]
[1751992027944,4.62946831,2582.6,2582.1,3.87274114]
[1751992028140,0.7574,2582.6,2582.1,3.87277807]
[1751992028343,0.7574,2582.6,2582.1,0.77458948]
[1751992028514,0.7574,2582.6,2582.0,6.31072966]
[1751992028515,0.7574,2582.6,2582.0,6.272]
[1751992028844,0.7574,2582.6,2582.1,0.35542628]
[1751992029039,0.7574,2582.6,2581.8,3.87324575]
[1751992029040,3.87256346,2582.3,2581.8,3.87324575]
[1751992029334,3.87228479,2582.5,2582.0,3.87295147]
[1751992029636,3.87239392,2582.4,2581.8,3.87316092]
[1751992029837,3.87251674,2582.3,2581.8,3.87324735]
[1751992030539,0.7574,2582.6,2582.0,3.87282881]
[1751992030842,0.7574,2582.6,2582.2,0.1936]
[1751992030843,3.87226225,2582.5,2582.2,0.1936]
[1751992031011,3.87236976,2582.4,2582.2,0.1936]
[1751992031215,3.87227061,2582.5,2582.2,0.1936]
[1751992031419,4.82311719,2582.6,2582.2,0.1936]
[1751992031616,3.87224328,2582.5,2582.2,0.1936]
[1751992032733,4.82308613,2582.6,2582.2,0.1936]
[1751992032932,3.87221684,2582.5,2582.2,0.1936]
[1751992033249,3.87236679,2582.4,2582.3,0.35694031]
[1751992033607,3.87223173,2582.5,2582.3,0.35694031]
[1751992033818,3.87223173,2582.5,2582.4,0.35711929]
[1751992034223,0.951,2582.6,2582.4,0.35711929]
[1751992034432,0.951,2582.6,2582.2,0.1936]
[1751992034433,3.87233239,2582.5,2582.2,0.1936]
[1751992034722,3.87236679,2582.4,2582.3,0.35712822]
[1751992035227,1e-08,2583.1,2582.3,0.35712822]
[1751992035228,12.527,2582.9,2582.3,0.35712822]
[1751992035427,3.87203998,2582.7,2582.4,0.3571825]
[1751992035735,3.87203998,2582.7,2582.5,0.3571825]
[1751992035945,3.87203998,2582.7,2582.6,0.3571825]
[1751992036122,3.87187866,2582.8,2582.6,0.3571825]
[1751992036327,3.87187866,2582.8,2582.3,3.87251377]
[1751992036542,16.39867546,2582.9,2582.4,4.22959995]
[1751992036845,16.39867546,2582.9,2582.5,0.35726368]
[1751992037145,16.39870489,2582.9,2582.6,0.35726368]
[1751992037340,16.39870489,2582.9,2582.7,0.35726368]
[1751992037341,3.87176707,2582.8,2582.7,0.35726368]
[1751992037918,16.39868227,2582.9,2582.7,0.35726368]
[1751992038261,16.39868227,2582.9,2582.2,3.91138244]
[1751992038262,3.8717873,2582.8,2582.3,3.87244267]
[1751992038429,12.527,2582.9,2582.4,0.35733708]
[1751992038629,3.87201064,2582.7,2582.5,0.35742161]
[1751992038925,3.87222073,2582.5,2582.0,3.87289663]
[1751992039136,3.87222073,2582.5,2582.1,0.35742321]
[1751992039342,0.7906,2582.7,2582.2,0.35742321]
[1751992039549,3.8721378,2582.6,2582.3,0.35742321]
[1751992039729,0.7906,2582.7,2582.4,0.35742321]
[1751992040050,3.87221684,2582.5,2582.0,3.87289939]
[1751992040249,3.87221684,2582.5,2582.1,0.35745726]
[1751992040550,12.522,2582.4,2582.2,4.23005531]
[1751992040751,12.522,2582.4,2582.3,0.35745726]
[1751992042567,16.39436679,2582.4,2582.3,0.35745726]
[1751992042768,3.87311904,2581.9,2581.6,0.001]
[1751992043044,3.87341674,2581.7,2581.6,0.001]
[1751992046745,5.18291674,2581.7,2581.6,1e-08]
[1751992047418,15.18291674,2581.7,2581.6,1e-08]
[1751992047618,19.18291674,2581.7,2581.6,1e-08]
[1751992049536,8.63291674,2581.7,2581.6,1e-08]
[1751992049964,4.63291674,2581.7,2581.6,1e-08]
[1751992050150,15.18291674,2581.7,2581.6,1e-08]
[1751992050654,14.63291674,2581.7,2581.6,1e-08]
[1751992051265,15.18291674,2581.7,2581.6,1e-08]
[1751992053935,14.63291674,2581.7,2581.6,1e-08]
[1751992054130,18.63291674,2581.7,2581.6,1e-08]
[1751992055255,4.06701674,2581.7,2581.6,1e-08]
[1751992056035,5.43321674,2581.7,2581.6,1e-08]
[1751992056240,15.43321674,2581.7,2581.6,1e-08]
[1751992057242,19.43321674,2581.7,2581.6,1e-08]
[1751992058170,19.43321674,2581.7,2581.5,1e-08]
[1751992058171,4.42356678,2581.6,2581.5,1e-08]
[1751992058373,20.90756678,2581.6,2581.5,1e-08]
[1751992061868,16.90756678,2581.6,2581.5,1e-08]
[1751992063350,20.90756678,2581.6,2581.5,1e-08]
[1751992063646,31.69106678,2581.6,2581.5,1e-08]
[1751992064373,39.64125879,2581.6,2581.5,1e-08]
[1751992064571,39.84346404,2581.6,2581.5,1e-08]
[1751992065271,42.14790191,2581.6,2581.5,1e-08]
[1751992065458,27.35946404,2581.6,2581.5,1e-08]
[1751992065639,39.81746404,2581.6,2581.5,1e-08]
[1751992066181,42.12190191,2581.6,2581.5,1e-08]
[1751992066949,39.81746404,2581.6,2581.5,1e-08]
[1751992067357,42.12703417,2581.6,2581.5,1e-08]
[1751992069476,39.81746404,2581.6,2581.5,1e-08]
[1751992070756,40.02007805,2581.6,2581.5,1e-08]
[1751992071482,43.47673485,2581.6,2581.5,1e-08]
[1751992071693,34.83754284,2581.6,2581.5,1e-08]
[1751992071896,30.97606678,2581.6,2581.5,1e-08]
[1751992072071,40.97606678,2581.6,2581.5,1e-08]
[1751992073165,43.28915562,2581.6,2581.5,1e-08]
[1751992073403,40.97606678,2581.6,2581.5,1e-08]
[1751992075002,43.29282292,2581.6,2581.5,1e-08]
[1751992075362,40.97606678,2581.6,2581.5,1e-08]
[1751992075893,40.42606678,2581.6,2581.5,1e-08]
[1751992076067,40.97606678,2581.6,2581.5,1e-08]
[1751992076779,43.29404144,2581.6,2581.5,1e-08]
[1751992077504,40.97606678,2581.6,2581.5,1e-08]
[1751992077651,43.29417288,2581.6,2581.5,1e-08]
[1751992078656,40.97606678,2581.6,2581.5,1e-08]
[1751992078856,54.94465687,2581.6,2581.5,1e-08]
[1751992080790,51.48800007,2581.6,2581.5,1e-08]
[1751992080997,48.93903352,2581.6,2581.5,1e-08]
[1751992081403,52.41678143,2581.6,2581.5,1e-08]
[1751992081584,52.36178143,2581.6,2581.5,1e-08]
[1751992081766,40.37106678,2581.6,2581.5,1e-08]
[1751992082166,44.39881469,2581.6,2581.5,1e-08]
[1751992082766,48.88603352,2581.6,2581.5,1e-08]
[1751992083375,49.07725313,2581.6,2581.5,1e-08]
[1751992085270,52.55519189,2581.6,2581.5,1e-08]
[1751992085497,49.07525313,2581.6,2581.5,1e-08]
[1751992085882,52.54445688,2581.6,2581.5,1e-08]
[1751992086268,49.06525313,2581.6,2581.5,1e-08]
[1751992086493,48.51225313,2581.6,2581.5,1e-08]
[1751992086694,43.82688512,2581.6,2581.5,1e-08]
[1751992086996,40.34706678,2581.6,2581.5,1e-08]
[1751992087198,20.24856678,2581.6,2581.5,0.80810001]
[1751992087407,22.5683119,2581.6,2581.5,0.80810001]
[1751992087571,30.24856678,2581.6,2581.5,1e-08]
[1751992087773,20.24856678,2581.6,2581.5,1e-08]
[1751992087970,30.24856678,2581.6,2581.5,1e-08]
[1751992088298,33.1183119,2581.6,2581.5,1e-08]
[1751992090402,30.79856678,2581.6,2581.5,1e-08]
[1751992090803,33.11962685,2581.6,2581.5,1e-08]
[1751992090979,33.11962435,2581.6,2581.5,1e-08]
[1751992091174,30.79856678,2581.6,2581.5,1e-08]
[1751992091377,35.08108512,2581.6,2581.5,1e-08]
[1751992091599,31.60126678,2581.6,2581.5,1e-08]
[1751992092302,35.08108512,2581.6,2581.5,1e-08]
[1751992093200,35.08515842,2581.6,2581.5,1e-08]
[1751992093372,31.60126678,2581.6,2581.5,1e-08]
[1751992093773,31.80348594,2581.6,2581.5,1e-08]
[1751992093984,31.80348594,2581.6,2580.5,0.001]
[1751992093985,4.42506781,2580.6,2580.5,0.001]
[1751992094179,16.78206781,2580.6,2580.5,0.001]
[1751992095792,16.78206781,2580.6,2580.5,1e-08]
[1751992096891,3.87506781,2580.6,2580.5,0.83140001]
[1751992101803,10.04306781,2580.6,2580.5,0.83140001]
[1751992103802,0.1936,2580.7,2580.5,0.83140001]
[1751992104003,6.166,2580.6,2580.5,0.83140001]
[1751992104407,10.04106781,2580.6,2580.5,1.02500001]
[1751992106590,10.04306781,2580.6,2580.5,1.02500001]
[1751992111425,10.04306781,2580.6,2580.5,1e-08]
[1751992117035,10.01206781,2580.6,2580.5,1e-08]
[1751992117736,3.87706781,2580.6,2580.5,1e-08]
[1751992117916,10.01106781,2580.6,2580.5,1e-08]
[1751992121807,10.56106781,2580.6,2580.5,1e-08]
[1751992122009,11.37526781,2580.6,2580.5,1e-08]
[1751992122601,11.37526781,2580.6,2580.4,0.001]
[1751992122602,14.61881798,2580.5,2580.4,1e-08]
[1751992122806,19.39401798,2580.5,2580.4,1e-08]
[1751992124042,25.52001798,2580.5,2580.4,1e-08]
[1751992124406,25.51801798,2580.5,2580.4,1e-08]
[1751992124806,25.52001798,2580.5,2580.4,1e-08]
[1751992125840,18.06881798,2580.5,2580.4,1e-08]
[1751992126143,14.19481798,2580.5,2580.4,1e-08]
[1751992126339,8.06881798,2580.5,2580.4,1e-08]
[1751992126512,14.19681798,2580.5,2580.4,1e-08]
[1751992126710,7.87521798,2580.5,2580.4,1e-08]
[1751992126906,14.00121798,2580.5,2580.4,1e-08]
[1751992127237,10.00121798,2580.5,2580.4,1e-08]
[1751992127941,10.19481798,2580.5,2580.4,1e-08]
[1751992131822,10.74481798,2580.5,2580.4,1e-08]
[1751992132333,20.74481798,2580.5,2580.4,1e-08]
[1751992133248,24.74481798,2580.5,2580.4,1e-08]
[1751992134822,30.84881798,2580.5,2580.4,1e-08]
[1751992137064,30.84881798,2580.5,2580.4,0.01268821]
[1751992140960,37.58880865,2580.5,2580.4,0.01268821]
[1751992141129,3.87611922,2579.9,2579.8,0.7892]
[1751992141471,10.16871922,2579.9,2579.8,0.7892]
[1751992141970,10.16771922,2579.9,2579.8,0.7892]
[1751992142757,3.87626947,2579.8,2579.7,0.0703427]
[1751992147060,4.23905294,2579.8,2579.7,0.0703427]
[1751992147876,3.87626947,2579.8,2579.7,0.0703427]
[1751992148677,9.96326947,2579.8,2579.7,0.0703427]
[1751992152264,10.15686947,2579.8,2579.7,0.0703427]
[1751992155679,16.20986947,2579.8,2579.7,0.0703427]
[1751992160710,12.121,2579.9,2579.7,1.2408313]
[1751992160891,12.121,2579.9,2579.8,0.3601886]
[1751992162085,3.87626947,2579.8,2579.7,0.0703427]
[1751992162416,15.99720707,2579.9,2579.7,0.43057527]
[1751992162575,15.99720707,2579.9,2579.8,0.36023257]
[1751992162899,12.121,2579.9,2579.8,0.36023257]
[1751992163103,3.87591462,2580.1,2579.8,0.36023257]
[1751992163300,9.93296899,2580.0,2579.9,0.36023257]
[1751992163487,9.93196899,2580.0,2579.9,0.36023257]
[1751992163809,6.056,2580.0,2579.9,1.13533257]
[1751992164393,3.87589382,2580.1,2579.9,1.13533257]
[1751992164570,3.87589382,2580.1,2580.0,0.36023257]
[1751992164768,9.92889382,2580.1,2580.0,0.36023257]
[1751992164970,9.92889382,2580.1,2579.9,0.7751]
[1751992165194,3.87596899,2580.0,2579.9,0.7751]
[1751992165394,3.87611922,2579.9,2579.7,0.0703427]
[1751992165590,6.052,2579.8,2579.7,0.0703427]
[1751992166024,9.92826947,2579.8,2579.7,0.0703427]
[1751992166826,9.93026947,2579.8,2579.7,0.0703427]
[1751992167034,6.054,2579.8,2579.7,0.0703427]
[1751992167397,9.93026947,2579.8,2579.7,0.0703427]
[1751992167643,3.87626947,2579.8,2579.7,0.0703427]
[1751992167810,0.1936,2579.9,2579.7,0.0703427]
[1751992168139,6.057,2579.8,2579.7,0.0703427]
[1751992169627,3.87609111,2580.0,2579.7,0.0703427]
[1751992169830,9.93313878,2579.9,2579.7,0.0703427]
[1751992169997,3.87607506,2580.0,2579.7,0.0703427]
[1751992170337,6.055,2579.9,2579.8,0.1936]
[1751992171332,4.06937676,2580.2,2579.8,0.1936]
[1751992171527,9.93083661,2580.1,2579.9,0.7915]
[1751992172331,3.875833,2580.1,2579.9,0.7915]
[1751992172516,9.925833,2580.1,2579.9,0.7915]
[1751992172835,6.056,2580.1,2579.9,12.57475167]
[1751992173040,6.056,2580.1,2580.0,0.1936]
[1751992173340,9.93181876,2580.1,2580.0,0.1936]
[1751992174234,6.053,2580.1,2579.9,0.9851]
[1751992174627,9.92883649,2580.1,2579.9,0.9851]
[1751992175726,3.87596899,2580.0,2579.9,0.9851]
[1751992175930,3.87626947,2579.8,2579.7,0.8618427]
[1751992176103,15.98226947,2579.8,2579.7,0.0703427]
[1751992178220,12.106,2579.8,2579.7,0.0703427]
[1751992180580,12.095,2579.9,2579.8,0.8294]
[1751992180871,3.87741665,2580.4,2579.9,3.87603067]
[1751992180872,12.095,2580.1,2579.9,3.87603067]
[1751992181171,12.092,2580.2,2579.9,5.49911891]
[1751992181373,0.1956,2580.4,2580.1,0.7533]
[1751992181560,0.002,2580.4,2580.3,10.61550902]
[1751992181872,0.002,2580.4,2580.3,12.70316574]
[1751992182242,0.002,2580.4,2580.3,5.96317507]
[1751992182449,0.002,2580.4,2580.3,2.08765672]
[1751992182764,0.002,2580.4,2580.3,0.9469]
[1751992183163,0.002,2580.4,2580.3,11.56240902]
[1751992185959,0.002,2580.4,2580.3,12.36240902]
[1751992187158,0.002,2580.4,2580.3,18.40540902]
[1751992187476,0.002,2580.4,2580.3,1.7469]
[1751992189960,3.87736815,2580.4,2580.3,0.9936]
[1751992191270,0.002,2580.4,2580.3,0.9936]
[1751992191470,3.87736815,2580.4,2580.3,0.9936]
[1751992191890,15.96036815,2580.4,2580.3,0.9936]
[1751992193063,15.96036815,2580.4,2580.3,0.8]
[1751992193258,15.96036815,2580.4,2580.1,0.9547]
[1751992193683,3.87553723,2580.3,2580.1,0.9547]
[1751992194284,15.96045312,2580.4,2580.1,0.9547]
[1751992194466,3.87559559,2580.3,2580.1,0.9547]
[1751992194793,15.96045219,2580.4,2580.1,0.9547]
[1751992194995,3.87566855,2580.2,2580.1,0.1936]
[1751992195197,3.87614963,2579.9,2579.8,0.1936]
[1751992195364,15.95814963,2579.9,2579.8,0.1936]
[1751992198296,3.87626947,2579.8,2579.7,0.0703427]
[1751992199298,12.083,2579.8,2579.7,0.0703427]
[1751992199796,12.083,2579.8,2579.7,0.2639427]
[1751992201586,12.083,2579.8,2579.7,4.14036243]
[1751992201903,12.083,2579.8,2579.7,0.2639427]
[1751992203403,12.083,2579.8,2579.7,10.8803531]
[1751992203608,12.083,2579.8,2579.7,12.44211894]
[1751992204108,12.083,2579.9,2579.8,0.8203]
[1751992204277,12.083,2580.1,2579.8,0.8203]
[1751992204478,12.083,2580.1,2579.8,0.1936]
[1751992204703,3.87604393,2580.0,2579.8,0.1936]
[1751992204872,12.083,2579.9,2579.8,0.1936]
[1751992206009,12.083,2580.1,2579.8,0.1936]